Cogmind - Beta 15 @@@ ROGUE MODE // 2025.05.07 @ 21:33:13 Player: gorb Result: Destroyed by P-60 Hacker with Shock Rifle Performance ------------- Evolutions (3) 1500 Regions Visited (6) 1200 Robots Destroyed (36) 180 Value Destroyed (1157) 1157 Prototype IDs (2) 40 Alien Tech Used (0) 0 Bonus (35) 35 TOTAL SCORE: 4112 Bonus ------- Follower Combat Kills 60 Aligned with FarCom 300 Friendly Fire -325 Cogmind --------- Core Integrity 0/700 Matter 21/300 Energy 100/100 System Corruption 13% Temperature Cool (0) Movement Core (1350) Ox26 Location -7/Factory Parts ------- > --- POWER (1) -------- (None) > --- PROPULSION (4) --- (None) > --- UTILITY (4) ------ Huge Storage Unit Weapon Cycler > --- WEAPON (4) ------- (None) > --- INVENTORY (25) --- Medium Storage Unit Recalibrator Sensor Drone Bay (20/20) Field Laser Flak Gun Peak State ------------ > --- POWER ------------ Light Nuclear Core > --- PROPULSION ------- Light Treads Light Treads Armored Treads Medium Treads > --- UTILITY ---------- Medium Storage Unit Seismic Detector Weapon Cycler Core Shielding > --- WEAPON ----------- Lightning Gun Minigun Gauss Rifle Improved Grenade Launcher > --- INVENTORY -------- Ion Engine Wheel Wheel Small Storage Unit Recalibrator Sensor Drone Bay Field Laser Flak Gun Advanced Assault Cannon Mini Grenade Launcher [Rating: 35] Favorites ----------- Power Ion Engine Engine Ion Engine Power Core Light Nuclear Core Propulsion Light Treads Treads Light Treads Wheel Wheel Utility Medium Storage Unit Device Seismic Detector Storage Medium Storage Unit Protection Core Shielding Weapon Light Assault Rifle Energy Gun Lightning Gun Ballistic Gun Light Assault Rifle Ballistic Cannon Light Cannon Launcher Improved Grenade Launcher Build | -11 -10 -10 -10 -9 -8 -7 ------- Run | Yrd Mat Min Exi Min Mat Fac Slots Evolved 6 | . . . . . 4 2 Power . | . . . . . . . Propulsion 2 | . . . . . . 2 Utility 2 | . . . . . 2 . Weapon 2 | . . . . . 2 . Parts Attached 33 | 7 1 1 . 2 9 13 Power 2 | 1 . . . . . 1 Engine 1 | 1 . . . . . . Core 1 | . . . . . . 1 Reactor . | . . . . . . . Propulsion 8 | 3 . . . . . 5 Treads 6 | 2 . . . . . 4 Leg . | . . . . . . . Wheel 2 | 1 . . . . . 1 Hover . | . . . . . . . Flight . | . . . . . . . Utility 11 | 1 1 1 . 2 3 3 Device 5 | . . . . 2 1 2 Storage 4 | 1 1 1 . . . 1 Processor . | . . . . . . . Hackware . | . . . . . . . Protection 2 | . . . . . 2 . Artifact . | . . . . . . . Weapon 12 | 2 . . . . 6 4 Energy Gun 1 | . . . . . . 1 Energy Cannon . | . . . . . . . Ballistic Gun 5 | 2 . . . . 2 1 Ballistic Cannon 2 | . . . . . 1 1 Launcher 4 | . . . . . 3 1 Special Weapon . | . . . . . . . Impact Weapon . | . . . . . . . Slashing Weapon . | . . . . . . . Piercing Weapon . | . . . . . . . Special Melee Weapon . | . . . . . . . Unidentified Prototypes 2 | . . . . 2 . . Parts Lost 19 | . . . . . 3 16 Power 2 | . . . . . . 2 Propulsion 7 | . . . . . 1 6 Utility 3 | . . . . . 1 2 Weapon 7 | . . . . . 1 6 Highest Loss Streak 13 | . . . . . 2 13 To Critical Strikes . | . . . . . . . Average Backups 8 | 4 4 6 8 9 9 9 Power 1 | . 1 1 1 1 1 . Propulsion 2 | 1 2 2 2 2 3 1 Utility 1 | . . 1 2 2 1 2 Weapon 3 | 1 1 2 3 3 2 3 Tool/Special . | . . . . . . . Unused Backups 4 | . . . . 2 . 2 Power 1 | . . . . 1 . . Propulsion . | . . . . . . . Utility . | . . . . . . . Weapon 3 | . . . . 1 . 2 Tool/Special . | . . . . . . . Average Slot Usage (%) 96 | . 85 100 100 100 94 90 Engine 9 | . 14 14 14 14 9 . Core 1 | . . . . . . 6 Treads 24 | . 28 28 28 28 17 24 Device 5 | . . . . 7 9 14 Storage 18 | . 14 28 28 21 9 7 Protection 4 | . . . . . 13 6 Ballistic Gun 25 | . 28 28 28 28 26 15 Ballistic Cannon 1 | . . . . . 6 . Launcher 2 | . . . . . 2 6 Peak Build Rating 35 | 6 7 7 7 17 19 35 Average Rating 13 | 3 6 7 7 11 15 29 On Entrance 8 | . 6 7 7 7 15 15 Naked Turns . | . . . . . . . Heaviest Build 105 | 12 14 19 19 31 40 105 Greatest Support 88 | 40 40 40 40 40 40 88 Greatest Overweight (x) 27 | 3 . . . . 1 27 Average Overweight (x) . | . . . . . . . Largest Inventory Capacity 25 | 8 8 10 10 10 10 25 Average Capacity 11 | 7 8 9 10 10 10 16 Most Carried 10 | 7 6 8 8 10 10 10 Average Carried 8 | 4 4 6 8 9 9 9 Final Capacity 25 | 8 8 10 10 10 10 25 Final Carried 10 | 4 5 8 8 9 10 5 Class Distribution -------------------- 58% | Mutant 16% | Skirmisher 14% | Scavenger-Skirmisher 11% | Tank Dominant Class ---------------- Mutant | -10/Materials Mutant | -10/Mines Mutant | -10/Exiles Mutant | -9/Mines Tank | -8/Materials Scavenger-Skirmisher | -7/Factory Resources | -11 -10 -10 -10 -9 -8 -7 ----------- Run | Yrd Mat Min Exi Min Mat Fac Matter Collected 711 | 69 21 32 . 143 277 169 Remotely . | . . . . . . . Salvage Created 932 | 15 21 . . . 480 416 Parts 61 | 2 1 . . . 33 25 Haulers Intercepted . | . . . . . . . Recyclers Shooed 1 | . . . . . . 1 Parts Field Recycled . | . . . . . . . Retrieved Matter . | . . . . . . . Parts Self-Destructed . | . . . . . . . Prevented . | . . . . . . . Kills | -11 -10 -10 -10 -9 -8 -7 ------- Run | Yrd Mat Min Exi Min Mat Fac Combat Hostiles Destroyed 23 | . . . . . 13 10 Guns 10 | . . . . . 8 2 Cannons 1 | . . . . . . 1 AOE 12 | . . . . . 5 7 Classes Destroyed 11 | 1 1 . . . 6 3 Worker 9 | . . . . . 2 7 Builder 1 | . . . . . 1 . Tunneler 1 | 1 . . . . . . Watcher 1 | . 1 . . . . . Swarmer 4 | . . . . . 3 1 Grunt 3 | . . . . . 3 . Protector 1 | . . . . . . 1 Sentry 5 | . . . . . 5 . Specialist 4 | . . . . . 2 2 Hunter 3 | . . . . . . 3 Programmer 3 | . . . . . . 3 Thug 1 | . . . . . . 1 Best Kill Streak 11 | 1 1 . . . 11 10 Combat Bots Only 8 | . . . . . 8 5 Max Kills in Single Turn 4 | 1 1 . . . 3 4 Gunslinging . | . . . . . . . Exploded 2 | . . . . . 2 2 Melee . | . . . . . . . Uniques/NPCs Destroyed . | . . . . . . . Combat | -11 -10 -10 -10 -9 -8 -7 -------- Run | Yrd Mat Min Exi Min Mat Fac Hostile Shots Fired 261 | . . . . 5 62 194 Missed 72 | . . . . 1 17 54 Hits 189 | . . . . 4 45 140 Projectile 189 | . . . . 4 45 140 Critical Strikes 9 | . . . . . 2 7 Actively Blocked 1 | . . . . . . 1 Damage Taken 3160 | . . . . 52 679 2429 Core 749 | . . . . . 46 703 Absorbed by Shields . | . . . . . . . Redirected to Shielding 50 | . . . . . 8 42 Core Remaining (%) 97 | 100 . . . 100 91 . Volleys Fired 38 | 2 1 . . 5 17 13 Largest 4 | 2 2 . . 2 4 4 Hottest 144 | 40 40 . . 40 101 144 Shots Fired 126 | 4 2 . . 10 68 42 Gun 96 | 4 2 . . 10 51 29 Cannon 8 | . . . . . 4 4 Launcher 22 | . . . . . 13 9 Special . | . . . . . . . Kinetic 97 | 4 2 . . 10 55 26 Thermal . | . . . . . . . Explosive 22 | . . . . . 13 9 Electromagnetic 7 | . . . . . . 7 Robot Hit Streak 10 | . 2 . . 7 9 10 Robot Miss Streak 3 | . . . . 2 2 3 Penetration Max 1 | . . . . . . 1 Secondary Targets . | . . . . . . . Shots Hit Robots 65 | . 2 . . 8 30 25 Core Hits 91 | 1 2 . . 1 27 60 Critical Kills . | . . . . . . . Critical Parts Destroyed . | . . . . . . . Critical Strikes 1 | . . . . . . 1 Blast 1 | . . . . . . 1 Melee Attacks . | . . . . . . . Impact . | . . . . . . . Slashing . | . . . . . . . Piercing . | . . . . . . . Sneak Attacks . | . . . . . . . Combat Hostiles . | . . . . . . . Follow-up Attacks . | . . . . . . . Damage Inflicted 3466 | 10 17 9 . 58 1036 2336 Guns 791 | 10 17 . . 58 296 410 Cannons 128 | . . . . . 35 93 Explosions 2517 | . . . . . 697 1820 Melee . | . . . . . . . Ramming 30 | . . 9 . . 8 13 Kinetic 860 | 10 17 . . 58 331 444 Thermal 92 | . . . . . . 92 Explosive 2278 | . . . . . 697 1581 Electromagnetic 206 | . . . . . . 206 Impact . | . . . . . . . Slashing . | . . . . . . . Piercing . | . . . . . . . Highest Corruption 12 | . . . . . . 12 Average Corruption 2 | . . . . . . 2 Corruption Purged . | . . . . . . . Corruption Blocked . | . . . . . . . Effects 8 | . . . . . . 8 Message Errors 3 | . . . . . . 3 Matter Fused 1 | . . . . . . 1 Heat Flow Errors 1 | . . . . . . 1 Data Loss (major) 2 | . . . . . . 2 Misfires 1 | . . . . . . 1 Overload Shots . | . . . . . . . Overflow Damage 76 | . . . . . 32 44 Projectiles . | . . . . . . . Explosions 76 | . . . . . 32 44 Melee . | . . . . . . . Knockbacks 1 | . . 1 . . . . Impact 1 | . . 1 . . . . Kinetic . | . . . . . . . Secondary . | . . . . . . . Self-Inflicted Damage 266 | . . . . . 74 192 Shots 7 | . . . . . 2 5 Rammed 3 | . . 1 . . 1 1 Targets Rammed 3 | . . 1 . . 1 1 Kicked . | . . . . . . . Crushed . | . . . . . . . Highest Temperature 176 | . . . . 12 176 171 Average Temperature 57 | . . . . 7 59 62 Received Heat Transfer 273 | . . . . 27 198 48 Siege Activations . | . . . . . . . Martial Activations . | . . . . . . . Shielding Activations . | . . . . . . . Robots Disrupted . | . . . . . . . Combat Hostiles . | . . . . . . . Robots Corrupted . | . . . . . . . Combat Hostiles . | . . . . . . . Parts Fried . | . . . . . . . Impact Corruptions . | . . . . . . . Robots Melted . | . . . . . . . Combat Hostiles . | . . . . . . . Parts Melted . | . . . . . . . Heat Transferred 100 | . . . . . . 100 Parts Sabotaged . | . . . . . . . Parts Stolen . | . . . . . . . Parts Stripped . | . . . . . . . Power Chain Reactions 2 | . . . . . . 2 Alert | -11 -10 -10 -10 -9 -8 -7 ------- Run | Yrd Mat Min Exi Min Mat Fac Maximum Alert Level 1 | . . . . . 1 . Low Security (%) 90 | 100 100 100 . 100 73 100 Level 1 9 | . . . . . 26 . Level 2 . | . . . . . . . Level 3 . | . . . . . . . Level 4 . | . . . . . . . Level 5 . | . . . . . . . High Security . | . . . . . . . Max Security . | . . . . . . . Peak Influence 294 | 5 7 15 . 43 294 198 Initial 128 | . 3 . . . . 128 Average 37 | . 2 . . 7 74 36 Influence Increases 910 | 5 7 15 . 53 471 359 Destroy 0b10 Robot/C 480 | . . . . 40 260 180 Destroy 0b10 Robot/NC 65 | 5 5 . . . 15 40 Destroy Leader 132 | . 2 . . 10 80 40 Allied During Kill 3 | . . . . 3 . . Successful Hack 8 | . . . . . 8 . Disable Machine 75 | . . . . . 15 60 Destroy Structure 132 | . . . . . 93 39 Lose Combat Pursuer 15 | . . 15 . . . . Influence Decreases 800 | . 12 15 . 53 189 531 Entered New Map 156 | . 2 . . . . 154 Time Decay 454 | . 10 15 . 53 159 217 Lost Part 190 | . . . . . 30 160 Squads Dispatched 5 | . . . . . 2 3 Investigation . | . . . . . . . Extermination 2 | . . . . . . 2 Reinforcement 3 | . . . . . 2 1 Assault . | . . . . . . . Garrison . | . . . . . . . Intercept . | . . . . . . . Searches Triggered . | . . . . . . . Construction Impeded 2 | . . . . . 1 1 Haulers Reinforced . | . . . . . . . Active Scanning Responses . | . . . . . . . Cargo Convoy Interrupts 1 | . . . . . . 1 Stealth | -11 -10 -10 -10 -9 -8 -7 --------- Run | Yrd Mat Min Exi Min Mat Fac Distress Signals 3 | . . 1 . . 1 1 Communications Jammed . | . . . . . . . Distress Signals . | . . . . . . . Times Spotted 43 | . 2 . . 2 16 23 Peak Tracking Total 12 | . 2 1 . 2 7 12 Tactical Retreats 1 | . . 1 . . . . Traps | -11 -10 -10 -10 -9 -8 -7 ------- Run | Yrd Mat Min Exi Min Mat Fac Traps Triggered 1 | . . . . . . 1 Indirectly . | . . . . . . . Trap Hack Attempts . | . . . . . . . Triggered . | . . . . . . . Disarmed . | . . . . . . . Reprogrammed . | . . . . . . . Reused . | . . . . . . . Traps Extracted . | . . . . . . . Installed . | . . . . . . . Triggered . | . . . . . . . Machines | -11 -10 -10 -10 -9 -8 -7 ---------- Run | Yrd Mat Min Exi Min Mat Fac Machines Disabled 5 | . . . . . 1 4 Max in Single Turn 2 | . . . . . 1 2 Machines Repaired . | . . . . . . . Machines Dismantled . | . . . . . . . Machines Sabotaged . | . . . . . . . Overloaded Fab Kills . | . . . . . . . Hacking | -11 -10 -10 -10 -9 -8 -7 --------- Run | Yrd Mat Min Exi Min Mat Fac Machines Accessed 7 | . . . 4 1 2 . Terminals 2 | . . . . . 2 . Fabricators . | . . . . . . . Repair Stations . | . . . . . . . Recycling Units . | . . . . . . . Scanalyzers . | . . . . . . . Garrison Access . | . . . . . . . Total Hacks 52 | . . . 49 1 2 . Successful 52 | . . . 49 1 2 . Failed . | . . . . . . . Catastrophic . | . . . . . . . Database Lockouts . | . . . . . . . Manual 1 | . . . 1 . . . Terminals 2 | . . . . . 2 . Fabricators . | . . . . . . . Repair Stations . | . . . . . . . Recycling Units . | . . . . . . . Scanalyzers . | . . . . . . . Garrison Access . | . . . . . . . Terminal Hacks 52 | . . . 49 1 2 . Record 51 | . . . 49 . 2 . Open Door 1 | . . . . 1 . . Fabricator Hacks . | . . . . . . . Repair Station Hacks . | . . . . . . . Recycling Unit Hacks . | . . . . . . . Scanalyzer . | . . . . . . . Garrison Access Hacks . | . . . . . . . Unauthorized Hacks . | . . . . . . . Terminals . | . . . . . . . Fabricators . | . . . . . . . Repair Stations . | . . . . . . . Recycling Units . | . . . . . . . Scanalyzers . | . . . . . . . Garrison Access . | . . . . . . . Data Cores Recovered . | . . . . . . . Used . | . . . . . . . Hacking Detections 2 | . . . . . 2 . Full Trace Events . | . . . . . . . Feedback Events . | . . . . . . . Feedback Blocked . | . . . . . . . Robot Schematics Acquired . | . . . . . . . Robots Built . | . . . . . . . Authchips . | . . . . . . . Time . | . . . . . . . Total Robot Build Rating . | . . . . . . . Part Schematics Acquired . | . . . . . . . Parts Built . | . . . . . . . Authchips . | . . . . . . . Time . | . . . . . . . Total Part Build Rating . | . . . . . . . Parts Repaired . | . . . . . . . Time . | . . . . . . . Parts Recycled . | . . . . . . . Recycled Matter . | . . . . . . . Retrieved Matter . | . . . . . . . Retrieved Components . | . . . . . . . Parts Scanalyzed . | . . . . . . . Part Schematics Acquired . | . . . . . . . Parts Damaged . | . . . . . . . Bothacking | -11 -10 -10 -10 -9 -8 -7 ------------ Run | Yrd Mat Min Exi Min Mat Fac Used RIF Installer . | . . . . . . . Robots Hacked . | . . . . . . . Non-combat . | . . . . . . . Combat . | . . . . . . . Robot Hacks Applied . | . . . . . . . Relay Couplers Released 3 | . . . . . . 3 Programmers 3 | . . . . . . 3 Fabnet Peak Effective % . | . . . . . . . Robots Rewired . | . . . . . . . Allies Hacked . | . . . . . . . Hacks Repelled . | . . . . . . . Allies | -11 -10 -10 -10 -9 -8 -7 -------- Run | Yrd Mat Min Exi Min Mat Fac Total Allies 1 | . . . . 1 . . Largest Group 1 | . . . . 1 1 . Highest-Rated Group 31 | . . . . 31 31 . Highest-Rated Ally 31 | . . . . 31 31 . Total Orders . | . . . . . . . Ally Attacks 6 | . . . . 6 . . Total Damage 124 | . . . . 124 . . Kills 2 | . . . . 2 . . Allies Corrupted . | . . . . . . . Allies Melted . | . . . . . . . Intel | -11 -10 -10 -10 -9 -8 -7 ------- Run | Yrd Mat Min Exi Min Mat Fac Active Infowar (turns) 1576 | . . . . 1 674 901 Sensors 1 | . . . . 1 . . Seismic 1575 | . . . . . 674 901 Robot Analysis Total . | . . . . . . . Derelict Logs Recovered 2 | . . 1 . 1 . . Drone Launches . | . . . . . . . Drone Recoveries . | . . . . . . . Exploration | -11 -10 -10 -10 -9 -8 -7 ------------- Run | Yrd Mat Min Exi Min Mat Fac Turns Passed 4671 | 66 70 562 1623 332 1027 991 Spaces Moved 2714 | 36 41 348 1015 193 589 492 Core 19 | 16 . . . . . 3 Treads 2683 | 20 41 348 1015 193 589 477 Legs . | . . . . . . . Wheels 12 | . . . . . . 12 Hover . | . . . . . . . Flight . | . . . . . . . Fastest Speed 50 | 50 160 160 160 160 160 140 Average Speed 165 | 125 160 160 160 160 162 190 Slowest Speed 1400 | 200 160 160 160 160 240 1400 Overloaded Moves . | . . . . . . . Propulsion Burnouts . | . . . . . . . Robots Hopped . | . . . . . . . Potential Cave-ins . | . . . . . . . Cave-ins Triggered . | . . . . . . . Exploration Rate (%) 37 | 4 12 66 92 32 38 15 Regions Visited 6 Branch Regions 3 Pre-discovered Areas 3 | . . 1 1 1 . . Known Exits Taken . | . . . . . . . Unknown Exits Taken 6 | 1 1 1 1 1 1 . Scrap Searched 2 | . . 1 . 1 . . Spaces Dug . | . . . . . . . Terrain Destroyed 138 | . . . . . 94 44 Melee . | . . . . . . . Projectile . | . . . . . . . AOE 138 | . . . . . 94 44 Terrain Rammed . | . . . . . . . Walls Destroyed . | . . . . . . . Machines Disabled . | . . . . . . . Actions | -11 -10 -10 -10 -9 -8 -7 --------- Run | Yrd Mat Min Exi Min Mat Fac Total 2831 | 53 44 352 1014 209 626 533 Wait . | . . . . . . . Move 2708 | 35 40 347 1014 192 588 492 Hop . | . . . . . . . Pick Up 31 | 8 2 3 . 5 7 6 Fast Attach 4 | 2 . . . . . 2 Attach 23 | 5 1 . . 1 6 10 Detach 2 | 1 . . . . 1 . Swap 11 | . . 1 . 2 4 4 Drop 11 | . . . . 4 2 5 Fire 38 | 2 1 . . 5 17 13 Melee . | . . . . . . . Ram . | . . . . . . . Kick . | . . . . . . . Crush 3 | . . 1 . . 1 1 Escape Stasis . | . . . . . . . Rewire . | . . . . . . . Trap . | . . . . . . . Miscellaneous . | . . . . . . . Route ------- -11/Scrapyard -10/Materials -10/Mines -10/Exiles (discovered 2 exits: *Min x2) -9/Mines -8/Materials -7/Factory History --------- Turn | Location | Event 8 | -11/Scrapyard | Discovered new exit (range 16) 67 | -11/Scrapyard | Entered Materials 83 | -10/Materials | Discovered new exit (range 13) 137 | -10/Materials | Entered Mines 306 | -10/Mines | Build established: Mutant 396 | -10/Mines | Received a Rocket Launcher from a helpful Derelict 692 | -10/Mines | Deemed a non-threat by the Exiles lab entrance 692 | -10/Mines | Discovered new exit (range 5) 699 | -10/Mines | Entered Exiles 725 | -10/Exiles | Discovered new exit (range 15) 746 | -10/Exiles | Met 8R-AWN 781 | -10/Exiles | Met EX-HEX 845 | -10/Exiles | Met EX-DEC 1042 | -10/Exiles | Discovered new exit (range 15) 1111 | -10/Exiles | Learned location of Zion (-6) 1172 | -10/Exiles | Visited The Gauntlet 1562 | -10/Exiles | Met EX-BIN 1719 | -10/Exiles | Aligned with FarCom system 1720 | -10/Exiles | Given EX-Vault access code 2322 | -10/Exiles | Entered Mines 2325 | -9/Mines | Received a Mining Laser from a helpful Derelict 2335 | -9/Mines | Met a Derelict bent on vengeance 2474 | -9/Mines | Found the Drone Emporium 2487 | -9/Mines | Found Prototype Device 2488 | -9/Mines | Identified Sensor Drone Bay 2564 | -9/Mines | Discovered new exit (range 16) 2569 | -9/Mines | Found a damaged Exp. Sensor Array with a note attached 2573 | -9/Mines | Found Prototype Device 2574 | -9/Mines | Identified Exp. Sensor Array 2654 | -9/Mines | Entered Materials 2654 | -8/Materials | Accompanied by 1 ally 2654 | -8/Materials | Evolved 4 slots: Utility x2, Weapon x2 3144 | -8/Materials | Build established: Tank 3401 | -8/Materials | Destroyed 8 combat bots 3657 | -8/Materials | Discovered new exit (range 10) 3664 | -8/Materials | Build established: Skirmisher 3681 | -8/Materials | Entered Factory 3681 | -7/Factory | Evolved 2 slots: Propulsion x2 4215 | -7/Factory | Build established: Scavenger-Skirmisher 4362 | -7/Factory | Allied Derelicts emerged from ambush trap array 4563 | -7/Factory | Cargo convoy interrupted 4634 | -7/Factory | Core integrity fell below 50% 4649 | -7/Factory | Core integrity fell below 20% 4658 | -7/Factory | Lost 13 parts (1p4n2u6w) 4660 | -7/Factory | System corruption reached 10% 4672 | -7/Factory | Destroyed by P-60 Hacker with Shock Rifle Last Messages --------------- K-01 Serf collects debris. U-05 Engineer lays Concrete. U-05 Engineer builds a Wall. SSKQXSQBLUP XBF6KHR|0KWWPOXFU U-05 Engineer builds a Wall. U-05 Engineer lays Concrete. U-05 Engineer builds a Wall. U-05 Engineer lays Concrete. U-05 Engineer builds a Wall. U-05 Engineer lays Concrete. U-05 Engineer builds a Wall. U-05 Engineer lays Concrete. P-60 Hacker resets U-05 Engineer, system corruption cleaned. U-05 Engineer lays Concrete. Wheel destroyed. U-05 Engineer lays Concrete. Ion Engine destroyed. U-05 Engineer lays Concrete. Wheel destroyed. Map ----- +----------------------------------------------------+ | ??#### #??????????????????????????????? | | ?## # #??????????????????????????????? | | ?# #??????????????????????????????? | | ## #% #??????????????????????????????? | | % %% #??????????????????????????????? | | ?# ####???????????????????????????? | | ??# % % / #???????????????????????????? | | ?????# ## #???????????????????????????? | | ?????# #? ????????????????????????????? | | ?????## #+ #+######+####????????????????????????? | | ??????#?# ### # /// +????????????????????????? | | ????????# ??# # /// ?????????????????????????? | | ????????#??##%# // ???????????????????????????? | | #####??##?###%# ???????? ????????????????????? | | ## ### ##+###### ???????????????????? | | # % ????????????????????? | | # ????????????????????? | | "" # ######???????????????????????? | | S"" # #????????????????????????????? | | "" # #????????????????????????????? | | ###+#### #????????????????????????????? | | ?? #????????????????????????????? | | ? #????????????????????????????? | | ? #????????????????????????????? | | ? ############ #########+### #?????????????? | | ? ????????????# p @ #?????????????? | | ? ??????????Y??# p #?????????????? | | ???????????????# p #?????????????? | | ???????????????# ??????????? | | ???????????????# ?????????? | | ???????????????# ########## ??????????? | | ???????????????# #????????? ??????????? | | ???????????????# #?????????? ??????????? | | ???????????????# #??????????? ???????????? | | ??????????????? ???????????? ???????????? | | ?????????????? ????????????? ????????????? | | ????????????? ?????????????? ????????????? | | ????????????? ??????????????? ??????????????? | | ????????????? ???????????????????????????????? | | ???????????????? ??????????????g????????????????? | | ???????????????????????????????g?????????????????? | | ?????????????????????????????g???????????????????? | | ?????????????????????????????????????????????????? | | ?????????????????????????????????????????????????? | | ?????????????????????????????????????????????????? | | ?????????????????????????????????????????????????? | | ?????????????????????????????????????????????????? | | ?????????????????????????????????????????????????? | | ?????????????????????????????????????????????????? | | ?????????????????????????????????????????????????? | +----------------------------------------------------+ Best States ------------- Heat Dissipation 34 Energy Generation 14 Energy Capacity 250 Matter Stores 261 Matter Capacity 400 Sight Range 16 Terrain Scan Density 10 Armor Coverage 150 Core Shielding 20 Weapon Cycling 15 Evasion (%) 40 Recoil Reduction 4 Item Schematics ----------------- None Robot Schematics ------------------ None Fabricated ------------ Nothing Repaired ---------- Nothing Alien Tech Used ----------------- None Achievements -------------- None Challenges ------------ None Game ------ Seed CryofiberDroneCycler Manual? 0 Play Time 00:52:12 Cumulative 23.3 hours Start 2025.05.07 @ 20:08:22 End 2025.05.07 @ 21:33:13 Sessions 1 Manual Loads 0 Difficulty Rogue Special Mode None Game No. 34 Rogue 32 Adventurer 0 Explorer 2 Win Type - Total 0 Types 0/0/0/0/0/0/0/0/0/0 Lore% 10 Gallery% 19 Achievement% 19 Wizard Run 0 Options --------- Layout 1 ASCII 0 Keyboard 0 Movement Mouse Keybinds 0 Fullscreen 1 Font 24/Smallcaps Map View 50x35 Zoom Use 0% Tactical HUD 0 Map Filters NONE Filters NONE Steam 1 RUN: 4a3f1e4a-2aa1-4849-af7c-9fb9889434da